lending/lending_fUSD_20240621
["ID","MTS","AMOUNT","RATE_DAILY","PERIOD"]
[330033769,1718956582262,-760.35,0.00041095,31]
[330033770,1718956582286,-500.0,0.00041095,31]
[330033771,1718956582310,-500.0,0.00041095,31]
[330033772,1718956582335,-733.36,0.00041095,31]
[330033773,1718956582361,-500.0,0.00041095,31]
[330033774,1718956582387,-614.66,0.00041095,31]
[330033775,1718956582433,-458.75194019,0.00041095,31]
[330033776,1718956582476,-626.91148122,0.00041095,31]
[330033777,1718956582504,-500.0,0.00041095,31]
[330033778,1718956582530,-348.79970762,0.00041095,31]
[330033779,1718956582555,-500.0,0.00041095,31]
[330033780,1718956582580,-1818.36,0.00041095,31]
[330033781,1718956582605,-500.0,0.00041095,31]
[330033782,1718956582630,-500.0,0.00041095,31]
[330033783,1718956582662,-500.0,0.00041095,31]
[330033784,1718956582688,-500.0,0.00041095,31]
[330033785,1718956582714,-500.0,0.00041095,31]
[330033786,1718956582740,-500.0,0.00041095,31]
[330033787,1718956582765,-500.0,0.00041095,31]
[330033788,1718956582791,-500.0,0.00041095,31]
[330033789,1718956582821,-734.54,0.00041095,31]
[330033790,1718956582848,-500.0,0.00041095,31]
[330033791,1718956582876,-748.46,0.00041095,31]
[330033792,1718956582906,-500.0,0.00041095,31]
[330033793,1718956582932,-500.0,0.00041095,31]
[330033794,1718956582958,-670.99,0.00041095,31]
[330033795,1718956582983,-612.85,0.00041095,31]
[330033796,1718956583011,-500.0,0.00041095,31]
[330033797,1718956583037,-2032.2,0.00041095,31]
[330033798,1718956583064,-500.0,0.00041095,31]
[330033799,1718956583090,-500.0,0.00041095,31]
[330033800,1718956583116,-531.03,0.00041095,31]
[330033801,1718956583142,-337.82975388,0.00041095,31]
[330033802,1718956583167,-500.0,0.00041095,31]
[330033803,1718956583191,-500.0,0.00041095,31]
[330033804,1718956583218,-500.0,0.00041095,31]
[330033805,1718956583243,-500.0,0.00041095,31]
[330033806,1718956583269,-561.1837336,0.00041095,31]
[330033807,1718956583294,-500.0,0.00041095,31]
[330033808,1718956583320,-1637.8,0.00041095,31]
[330033809,1718956583346,-500.0,0.00041095,31]
[330033810,1718956583373,-500.0,0.00041095,31]
[330033811,1718956583399,-3313.85,0.00041095,30]
[330033812,1718956583426,-500.0,0.00041095,31]
[330033813,1718956583453,-735.27,0.00041095,31]
[330033814,1718956583481,-500.0,0.00041095,31]
[330033815,1718956583506,-500.0,0.00041095,31]
[330033816,1718956583532,-500.0,0.00041095,31]
[330033817,1718956583562,-500.0,0.00041095,31]
[330033818,1718956583590,-500.0,0.00041095,31]
[330033819,1718956583615,-500.0,0.00041095,31]
[330033820,1718956583641,-500.0,0.00041095,31]
[330033821,1718956583667,-500.0,0.00041095,31]
[330033822,1718956583694,-506.16294569,0.00041095,31]
[330033823,1718956583721,-500.0,0.00041095,31]
[330033824,1718956583748,-500.0,0.00041095,31]
[330033825,1718956583775,-1160.78,0.00041095,31]
[330033826,1718956583804,-500.0,0.00041095,31]
[330033827,1718956583837,-1039.06,0.00041095,31]
[330033828,1718956583865,-500.0,0.00041095,31]
[330033829,1718956583894,-502.29411269,0.00041095,31]
[330033830,1718956583922,-500.0,0.00041095,31]
[330033831,1718956583947,-500.0,0.00041095,31]
[330033832,1718956583972,-500.0,0.00041095,31]
[330033833,1718956583997,-500.0,0.00041095,31]
[330033834,1718956584022,-500.0,0.00041095,31]
[330033835,1718956584048,-500.0,0.00041095,31]
[330033836,1718956584074,-500.0,0.00041095,31]
[330033837,1718956584103,-500.0,0.00041095,31]
[330033838,1718956584130,-2862.11,0.00041095,31]
[330033839,1718956584155,-500.0,0.00041095,31]
[330033840,1718956584180,-500.0,0.00041095,31]
[330033841,1718956584464,-500.0,0.00041095,31]
[330033842,1718956584491,-555.47414235,0.00041095,31]
[330033843,1718956584517,-500.0,0.00041095,31]
[330033844,1718956584544,-500.0,0.00041095,31]
[330033845,1718956584571,-500.0,0.00041095,31]
[330033846,1718956584600,-500.0,0.00041095,31]
[330033847,1718956584623,-500.0,0.00041095,31]
[330033848,1718956584650,-921.75,0.00041095,31]
[330033849,1718956584675,-500.0,0.00041095,31]
[330033850,1718956584701,-500.0,0.00041095,31]
[330033851,1718956584726,-500.0,0.00041095,31]
[330033852,1718956584752,-500.0,0.00041095,31]
[330033853,1718956584778,-500.0,0.00041095,31]
[330033854,1718956584803,-502.63629011,0.00041095,31]
[330033855,1718956584830,-500.0,0.00041095,31]
[330033856,1718956584857,-500.0,0.00041095,31]
[330033857,1718956584884,-500.0,0.00041095,31]
[330033858,1718956584911,-500.0,0.00041095,31]
[330033859,1718956584938,-500.0,0.00041095,31]
[330033860,1718956584964,-500.0,0.00041095,31]
[330033861,1718956584990,-1477.77,0.00041095,31]
[330033862,1718956585016,-500.0,0.00041095,31]
[330033863,1718956585042,-500.0,0.00041095,31]
[330033864,1718956585070,-500.0,0.00041095,31]
[330033865,1718956585097,-500.0,0.00041095,31]
[330033866,1718956585123,-557.27,0.00041095,31]
[330033867,1718956585149,-704.0,0.00041095,31]
[330033868,1718956585175,-500.0,0.00041095,31]
[330033869,1718956585202,-649.31,0.00041095,31]
[330033870,1718956585228,-500.0,0.00041095,31]
[330033871,1718956585254,-500.0,0.00041095,31]
[330033872,1718956585279,-1202.28,0.00041095,31]
[330033873,1718956585304,-574.83924365,0.00041095,31]
[330033874,1718956585329,-500.0,0.00041095,31]
[330033875,1718956585356,-500.0,0.00041095,31]
[330033876,1718956585380,-500.0,0.00041095,31]
[330033877,1718956585407,-521.07,0.00041095,31]
[330033878,1718956585432,-500.0,0.00041095,31]
[330033879,1718956585458,-500.36205415,0.00041095,31]
[330033880,1718956585484,-1013.22,0.00041095,31]
[330033881,1718956585509,-654.5,0.00041095,31]
[330033882,1718956585535,-623.67,0.00041095,31]
[330033883,1718956585563,-500.0,0.00041095,31]
[330033884,1718956585589,-500.0,0.00041095,31]
[330033885,1718956585616,-824.84,0.00041095,31]
[330033886,1718956585642,-500.0,0.00041095,31]
[330033887,1718956585669,-1334.38,0.00041095,31]
[330033888,1718956585694,-500.0,0.00041095,31]
[330033889,1718956585718,-500.0,0.00041095,31]
[330033890,1718956585744,-500.0,0.00041095,31]
[330033891,1718956585770,-500.0,0.00041095,31]
[330033892,1718956585795,-288.41463324,0.00041095,31]
[330033893,1718956585823,-500.0,0.00041095,31]
[330033894,1718956585848,-500.0,0.00041095,31]
[330033895,1718956585875,-1479.55,0.00041095,31]
[330033896,1718956585900,-500.0,0.00041095,31]
[330033897,1718956585926,-1136.63,0.00041095,31]
[330033898,1718956585952,-500.0,0.00041095,31]
[330033899,1718956585978,-500.0,0.00041095,31]
[330033900,1718956586004,-500.0,0.00041095,31]
[330033901,1718956586028,-500.0,0.00041095,31]
[330033902,1718956586052,-576.54,0.00041095,31]
[330033903,1718956586077,-500.0,0.00041095,31]
[330033904,1718956586103,-1930.64,0.00041095,31]
[330033905,1718956586128,-634.67,0.00041095,31]
[330033906,1718956586153,-500.0,0.00041095,31]
[330033907,1718956586179,-500.0,0.00041095,31]
[330033908,1718956586204,-500.0,0.00041095,31]
[330033909,1718956586227,-500.0,0.00041095,31]
[330033910,1718956586252,-1053.39,0.00041095,31]
[330033911,1718956586277,-500.0,0.00041095,31]
[330033912,1718956586301,-694.25,0.00041095,31]
[330033913,1718956586326,-500.0,0.00041095,31]
[330033914,1718956586351,-500.0,0.00041095,31]
[330033915,1718956586376,-732.79,0.00041095,31]
[330033916,1718956586401,-2043.71,0.00041095,31]
[330033917,1718956586425,-500.0,0.00041095,31]
[330033918,1718956586451,-500.0,0.00041095,31]
[330033919,1718956586476,-500.0,0.00041095,31]
[330033920,1718956586502,-500.20709893,0.00041095,31]
[330033921,1718956586527,-500.0,0.00041095,31]
[330033922,1718956586553,-1198.81,0.00041095,31]
[330033923,1718956586577,-524.82,0.00041095,31]
[330033924,1718956586606,-547.56,0.00041095,31]
[330033925,1718956586630,-500.0,0.00041095,31]
[330033926,1718956586656,-500.0,0.00041095,31]
[330033927,1718956586682,-500.0,0.00041095,31]
[330033928,1718956586708,-598.88,0.00041095,31]
[330033929,1718956586732,-500.0,0.00041095,31]
[330033930,1718956586756,-500.0,0.00041095,31]
[330033931,1718956586779,-500.0,0.00041095,31]
[330033932,1718956586803,-500.0,0.00041095,31]
[330033933,1718956586831,-500.0,0.00041095,31]
[330033934,1718956586861,-1091.37,0.00041095,31]
[330033935,1718956586885,-500.0,0.00041095,31]
[330033936,1718956586913,-500.0,0.00041095,31]
[330033937,1718956586937,-608.99,0.00041095,31]
[330033938,1718956586963,-1305.69,0.00041095,31]
[330033939,1718956586993,-535.03,0.00041095,31]
[330033940,1718956587020,-503.01,0.00041095,31]
[330033941,1718956587046,-563.60160279,0.00041095,31]
[330033942,1718956587072,-1710.03,0.00041095,31]
[330033943,1718956587102,-500.0,0.00041095,31]
[330033944,1718956587127,-500.0,0.00041095,31]
[330033945,1718956587156,-500.0,0.00041095,31]
[330033946,1718956587399,-751.31,0.00041095,31]
[330033947,1718956587426,-500.0,0.00041095,31]
[330033948,1718956587451,-500.0,0.00041095,31]
[330033949,1718956587477,-500.0,0.00041095,31]
[330033950,1718956587504,-1029.71,0.00041095,31]
[330033951,1718956587531,-523.08,0.00041095,31]
[330033952,1718956587557,-778.1,0.00041095,31]
[330033953,1718956587583,-500.0,0.00041095,31]
[330033954,1718956587616,-500.0,0.00041095,31]
[330033955,1718956587642,-521.08,0.00041095,31]
[330033956,1718956587667,-938.77,0.00041095,31]
[330033957,1718956587692,-500.0,0.00041095,31]
[330033958,1718956587716,-500.0,0.00041095,31]
[330033959,1718956587741,-796.24,0.00041095,31]
[330033960,1718956587765,-500.0,0.00041095,31]
[330033961,1718956587790,-577.45,0.00041095,31]
[330033962,1718956587817,-631.09,0.00041095,31]
[330033963,1718956587847,-173.03996443,0.00041095,31]
[330033964,1718956587873,-813.4,0.00041095,31]
[330033965,1718956587902,-500.0,0.00041095,31]
[330033966,1718956587926,-836.15,0.00041095,31]
[330033967,1718956587951,-814.17,0.00041095,31]
[330033968,1718956587975,-500.0,0.00041095,31]
[330033969,1718956588001,-500.0,0.00041095,31]
[330033970,1718956588026,-798.17,0.00041095,31]
[330033971,1718956588052,-947.26,0.00041095,31]
[330033972,1718956588077,-500.0,0.00041095,31]
[330033973,1718956588105,-664.08,0.00041095,31]
[330033974,1718956588130,-1110.12,0.00041095,31]
[330033975,1718956588156,-500.0,0.00041095,31]
[330033976,1718956588181,-500.0,0.00041095,31]
[330033977,1718956588205,-550.68661638,0.00041095,31]
[330033978,1718956588229,-500.0,0.00041095,31]
[330033979,1718956588255,-500.0,0.00041095,31]
[330033980,1718956588280,-500.0,0.00041095,31]
[330033981,1718956588305,-2083.15,0.00041095,31]
[330033982,1718956588333,-500.0,0.00041095,31]
[330033983,1718956588366,-500.0,0.00041095,31]
[330033984,1718956588390,-500.0,0.00041095,31]
[330033985,1718956588414,-500.0,0.00041095,31]
[330033986,1718956588439,-568.87,0.00041095,31]
[330033987,1718956588465,-500.0,0.00041095,31]
[330033988,1718956588489,-500.0,0.00041095,31]
[330033989,1718956588514,-913.33,0.00041095,31]
[330033990,1718956588539,-500.0,0.00041095,31]
[330033991,1718956588564,-542.93,0.00041095,31]
[330033992,1718956588594,-904.22,0.00041095,31]
[330033993,1718956588618,-500.0,0.00041095,31]
[330033994,1718956588643,-1725.1,0.00041095,31]
[330033995,1718956588667,-500.0,0.00041095,31]
[330033996,1718956588692,-1654.09,0.00041095,31]
[330033997,1718956588717,-500.0,0.00041095,31]
[330033998,1718956588741,-1266.6,0.00041095,31]
[330033999,1718956588766,-500.0,0.00041095,31]
[330034000,1718956588790,-500.0,0.00041095,31]
[330034001,1718956588819,-500.0,0.00041095,31]
[330034002,1718956588843,-585.96543141,0.00041095,31]
[330034003,1718956588867,-679.53,0.00041095,31]
[330034004,1718956588893,-1634.34,0.00041095,31]
[330034005,1718956588918,-500.0,0.00041095,31]
[330034006,1718956588942,-500.0,0.00041095,31]
[330034007,1718956588966,-1195.59,0.00041095,31]
[330034008,1718956588992,-1647.62,0.00041095,31]
[330034009,1718956589019,-1276.61,0.00041095,31]
[330034010,1718956589045,-500.0,0.00041095,31]
[330034011,1718956589069,-500.0,0.00041095,31]
[330034012,1718956589098,-500.0,0.00041095,31]
[330034013,1718956589124,-542.12,0.00041095,31]
[330034014,1718956589150,-1692.27,0.00041095,31]
[330034015,1718956589175,-500.0,0.00041095,31]
[330034016,1718956589200,-500.0,0.00041095,31]
[330034017,1718956589226,-500.0,0.00041095,31]
[330034018,1718956589252,-500.0,0.00041095,31]
[330034019,1718956589277,-500.0,0.00041095,31]
[330034020,1718956589302,-500.0,0.00041095,31]
[330034021,1718956589327,-1532.07,0.00041095,31]
[330034022,1718956589355,-500.0,0.00041095,31]
[330034023,1718956589380,-648.64,0.00041095,31]
[330034024,1718956589404,-2188.81,0.00041095,31]
[330034025,1718956589429,-524.1,0.00041095,31]
[330034026,1718956589453,-583.6,0.00041095,31]
[330034027,1718956589477,-1891.87,0.00041095,31]
[330034028,1718956589503,-869.31,0.00041095,31]
[330034029,1718956589529,-741.01,0.00041095,31]
[330034030,1718956589554,-500.0,0.00041095,31]
[330034031,1718956589579,-500.0,0.00041095,31]
[330034032,1718956589607,-500.0,0.00041095,31]
[330034033,1718956589630,-500.0,0.00041095,31]
[330034034,1718956589655,-979.44,0.00041095,31]
[330034035,1718956589680,-500.0,0.00041095,31]
[330034036,1718956589703,-500.0,0.00041095,31]
[330034037,1718956589727,-501.15241271,0.00041095,31]
[330034038,1718956589751,-642.81,0.00041095,31]
[330034039,1718956589778,-500.0,0.00041095,31]
[330034040,1718956589802,-500.0,0.00041095,31]
[330034041,1718956589832,-817.31,0.00041095,31]
[330034042,1718956589859,-500.0,0.00041095,31]
[330034043,1718956589883,-500.0,0.00041095,31]
[330034044,1718956589913,-500.0,0.00041095,31]
[330034045,1718956589937,-500.0,0.00041095,31]
[330034046,1718956589961,-1990.64,0.00041095,31]
[330034047,1718956589990,-500.0,0.00041095,31]
[330034048,1718956590015,-500.0,0.00041095,31]
[330034049,1718956590043,-500.0,0.00041095,31]
[330034050,1718956590068,-500.0,0.00041095,31]
[330034051,1718956590304,-500.0,0.00041095,31]
[330034052,1718956590330,-500.0,0.00041095,31]
[330034053,1718956590358,-500.0,0.00041095,31]
[330034054,1718956590384,-500.0,0.00041095,31]
[330034055,1718956590408,-500.0,0.00041095,31]
[330034056,1718956590434,-500.0,0.00041095,31]
[330034057,1718956590458,-500.0,0.00041095,31]
[330034058,1718956590484,-500.0,0.00041095,31]
[330034059,1718956590510,-500.0,0.00041095,31]
[330034060,1718956590535,-500.0,0.00041095,31]
[330034061,1718956590560,-500.0,0.00041095,31]
[330034062,1718956590584,-500.0,0.00041095,31]
[330034063,1718956590612,-500.0,0.00041095,31]
[330034064,1718956590637,-500.0,0.00041095,31]
[330034065,1718956590662,-500.0,0.00041095,31]
[330034066,1718956590686,-263.6,0.00041095,31]
[330034067,1718956590710,-500.0,0.00041095,31]
[330034068,1718956590734,-500.0,0.00041095,31]
[330034069,1718956590759,-2125.76,0.00041095,31]
[330034070,1718956590783,-500.0,0.00041095,31]
[330034071,1718956590809,-500.0,0.00041095,31]
[330034072,1718956590843,-618.15,0.00041095,31]
[330034073,1718956590867,-500.0,0.00041095,31]
[330034074,1718956590893,-500.0,0.00041095,31]
[330034075,1718956590918,-1408.0,0.00041095,31]
[330034076,1718956590943,-1644.48,0.00041095,31]
[330034077,1718956590969,-500.0,0.00041095,31]
[330034078,1718956590993,-500.0,0.00041095,31]
[330034079,1718956591021,-568.58157254,0.00041095,31]
[330034080,1718956591047,-1081.88,0.00041095,31]
[330034081,1718956591071,-500.0,0.00041095,31]
[330034082,1718956591097,-500.0,0.00041095,31]
[330034083,1718956591121,-1130.5,0.00041095,31]
[330034084,1718956591146,-500.0,0.00041095,31]
[330034085,1718956591171,-500.0,0.00041095,31]
[330034086,1718956591194,-500.0,0.00041095,31]
[330034087,1718956591219,-2370.45,0.00041095,31]
[330034088,1718956591242,-500.0,0.00041095,31]
[330034089,1718956591266,-9754.86,0.00041095,31]
[330034090,1718956591290,-862.92,0.00041095,31]
[330034091,1718956591315,-500.0,0.00041095,31]
[330034092,1718956591342,-500.0,0.00041095,31]
[330034093,1718956591366,-305.74036439,0.00041095,31]
[330034094,1718956591390,-500.0,0.00041095,31]
[330034095,1718956591417,-912.28,0.00041095,31]
[330034096,1718956591441,-855.26,0.00041095,31]
[330034097,1718956591466,-500.0,0.00041095,31]
[330034098,1718956591491,-1862.16,0.00041095,31]
[330034099,1718956591515,-947.23,0.00041095,31]
[330034100,1718956591540,-471.7507929,0.00041095,31]
[330034101,1718956591564,-504.74221726,0.00041095,31]
[330034102,1718956591592,-500.0,0.00041095,31]
[330034103,1718956591619,-774.42,0.00041095,31]
[330034104,1718956591646,-500.0,0.00041095,31]
[330034105,1718956591673,-964.54671758,0.00041095,120]
[330034106,1718956591700,-500.0,0.00041095,31]
[330034107,1718956591726,-1081.69,0.00041095,31]
[330034108,1718956591755,-500.0,0.00041095,31]
[330034109,1718956591783,-2940.37,0.00041095,31]
[330034110,1718956591811,-500.0,0.00041095,31]
[330034111,1718956591840,-1073.21,0.00041095,31]
[330034112,1718956591872,-500.0,0.00041095,31]
[330034113,1718956591900,-500.0,0.00041095,31]
[330034114,1718956591925,-500.0,0.00041095,31]
[330034115,1718956591949,-500.0,0.00041095,31]
[330034116,1718956591974,-500.0,0.00041095,31]
[330034117,1718956591998,-621.872922,0.00041095,31]
[330034118,1718956592022,-500.0,0.00041095,31]
[330034119,1718956592044,-1167.67,0.00041095,31]
[330034120,1718956592067,-627.26,0.00041095,31]
[330034121,1718956592090,-500.0,0.00041095,31]
[330034122,1718956592115,-1329.19,0.00041095,31]
[330034123,1718956592140,-500.0,0.00041095,31]
[330034124,1718956592165,-500.0,0.00041095,31]
[330034125,1718956592188,-500.0,0.00041095,31]
[330034126,1718956592211,-1066.12,0.00041095,31]
[330034127,1718956592235,-774.59,0.00041095,31]
[330034128,1718956592258,-500.0,0.00041095,31]
[330034129,1718956592281,-500.0,0.00041095,31]
[330034130,1718956592304,-500.0,0.00041095,31]
[330034131,1718956592326,-500.0,0.00041095,31]
[330034132,1718956592349,-500.0,0.00041095,31]
[330034133,1718956592374,-500.0,0.00041095,31]
[330034134,1718956592398,-500.0,0.00041095,31]
[330034135,1718956592427,-500.0,0.00041095,31]
[330034136,1718956592452,-885.68,0.00041095,31]
[330034137,1718956592478,-32551.53,0.00041095,31]
[330034138,1718956592502,-500.75851923,0.00041095,31]
[330034139,1718956592526,-500.0,0.00041095,31]
[330034140,1718956592550,-500.0,0.00041095,31]
[330034141,1718956592574,-500.0,0.00041095,31]
[330034142,1718956592599,-500.0,0.00041095,31]
[330034143,1718956592621,-500.0,0.00041095,31]
[330034144,1718956592646,-500.0,0.00041095,31]
[330034145,1718956592671,-838.21,0.00041095,31]
[330034146,1718956592695,-13496.77,0.00041095,31]
[330034147,1718956592719,-500.0,0.00041095,31]
[330034148,1718956592744,-500.0,0.00041095,31]
[330034149,1718956592768,-1218.16,0.00041095,31]
[330034150,1718956592793,-500.0,0.00041095,31]
[330034151,1718956592819,-500.0,0.00041095,31]
[330034152,1718956592847,-950.19,0.00041095,31]
[330034153,1718956592873,-500.0,0.00041095,31]
[330034154,1718956592899,-697.69,0.00041095,31]
[330034155,1718956592923,-500.0,0.00041095,31]
[330034156,1718956593171,-500.0,0.00041095,31]
[330034157,1718956593197,-500.0,0.00041095,31]
[330034158,1718956593223,-5000.0,0.00041095,31]
[330034159,1718956593248,-500.0,0.00041095,31]
[330034160,1718956593271,-500.0,0.00041095,31]
[330034161,1718956593296,-985.84,0.00041095,31]
[330034162,1718956593321,-500.0,0.00041095,31]
[330034163,1718956593351,-500.0,0.00041095,31]
[330034164,1718956593376,-250.0,0.00041095,31]
[330034165,1718956593402,-500.0,0.00041095,31]
[330034166,1718956593427,-3042.3,0.00041095,31]
[330034167,1718956593453,-500.0,0.00041095,31]
[330034168,1718956593477,-1888.63,0.00041095,31]
[330034169,1718956593502,-500.0,0.00041095,31]
[330034170,1718956593527,-500.0,0.00041095,31]
[330034171,1718956593551,-710.95,0.00041095,31]
[330034172,1718956593575,-500.0,0.00041095,31]
[330034173,1718956593602,-1540.74,0.00041095,31]
[330034174,1718956593626,-707.0,0.00041095,31]
[330034175,1718956593650,-725.5,0.00041095,31]
[330034176,1718956593674,-500.0,0.00041095,31]
[330034177,1718956593698,-967.38,0.00041095,31]
[330034178,1718956593721,-500.0,0.00041095,31]
[330034179,1718956593745,-500.0,0.00041095,31]
[330034180,1718956593770,-337.85492021,0.00041095,31]
[330034181,1718956593794,-501.87679793,0.00041095,31]
[330034182,1718956593823,-3436.64,0.00041095,31]
[330034183,1718956593849,-3397.96,0.00041095,31]
[330034184,1718956593876,-781.3,0.00041095,31]
[330034185,1718956593902,-500.0,0.00041095,31]
[330034186,1718956593928,-500.0,0.00041095,31]
[330034187,1718956593952,-626.45,0.00041095,31]
[330034188,1718956593975,-500.0,0.00041095,31]
[330034189,1718956593999,-572.6,0.00041095,31]
[330034190,1718956594023,-500.0,0.00041095,31]
[330034191,1718956594048,-1172.24,0.00041095,31]
[330034192,1718956594072,-1748.28,0.00041095,31]
[330034193,1718956594098,-1172.24,0.00041095,31]
[330034194,1718956594121,-1172.24,0.00041095,31]
[330034195,1718956594145,-500.0,0.00041095,31]
[330034196,1718956594171,-1172.24,0.00041095,31]
[330034197,1718956594195,-1172.24,0.00041095,31]
[330034198,1718956594218,-2804.38,0.00041095,31]
[330034199,1718956594242,-1172.24,0.00041095,31]
[330034200,1718956594266,-1172.24,0.00041095,31]
[330034201,1718956594289,-500.0,0.00041095,31]
[330034202,1718956594312,-2000.0,0.00041095,31]
[330034203,1718956594337,-1172.24,0.00041095,31]
[330034204,1718956594362,-1172.24,0.00041095,31]
[330034205,1718956594387,-1172.24,0.00041095,31]
[330034206,1718956594410,-500.0,0.00041095,31]
[330034207,1718956594434,-1172.24,0.00041095,31]
[330034208,1718956594458,-500.0,0.00041095,31]
[330034209,1718956594482,-1172.24,0.00041095,31]
[330034210,1718956594507,-1172.24,0.00041095,31]
[330034211,1718956594532,-1172.24,0.00041095,31]
[330034212,1718956594557,-975.32,0.00041095,31]
[330034213,1718956594582,-1172.24,0.00041095,31]
[330034214,1718956594607,-1172.24,0.00041095,31]
[330034215,1718956594631,-1172.24,0.00041095,31]
[330034216,1718956594655,-1172.24,0.00041095,31]
[330034217,1718956594679,-1172.24,0.00041095,31]
[330034218,1718956594703,-1172.24,0.00041095,31]
[330034219,1718956594727,-1172.24,0.00041095,31]
[330034220,1718956594752,-931.79,0.00041095,31]
[330034221,1718956594777,-1172.24,0.00041095,31]
[330034222,1718956594801,-500.0,0.00041095,31]
[330034223,1718956594830,-1172.24,0.00041095,31]
[330034224,1718956594855,-1315.17,0.00041095,31]
[330034225,1718956594880,-9022.07,0.00041095,31]
[330034226,1718956594909,-1172.27201812,0.00041095,31]
[330034227,1718956594935,-500.0,0.00041095,31]
[330034228,1718956594959,-1068.25,0.00041095,31]
[330034229,1718956594984,-866.81,0.00041095,31]
[330034230,1718956595010,-1759.65,0.00041095,31]
[330034231,1718956595039,-520.05,0.00041095,31]
[330034232,1718956595063,-864.34,0.00041095,31]
[330034233,1718956595087,-1968.37,0.00041095,31]
[330034234,1718956595112,-500.21989421,0.00041095,31]
[330034235,1718956595136,-500.0,0.00041095,31]
[330034236,1718956595163,-500.0,0.00041095,31]
[330034237,1718956595188,-1120.37,0.00041095,31]
[330034238,1718956595212,-500.0,0.00041095,31]
[330034239,1718956595239,-572.29,0.00041095,31]
[330034240,1718956595264,-500.0,0.00041095,31]
[330034241,1718956595289,-2215.25,0.00041095,31]
[330034242,1718956595312,-500.0,0.00041095,31]
[330034243,1718956595336,-4387.05,0.00041095,31]
[330034244,1718956595363,-5668.6,0.00041095,31]
[330034245,1718956595387,-500.0,0.00041095,31]
[330034246,1718956595411,-500.0,0.00041095,31]
[330034247,1718956595436,-514.17,0.00041095,31]
[330034248,1718956595461,-500.0,0.00041095,31]
[330034249,1718956595486,-1207.43,0.00041095,31]
[330034250,1718956595509,-705.81,0.00041095,31]
[330034251,1718956595534,-1358.37,0.00041095,31]
[330034252,1718956595557,-500.0,0.00041095,31]
[330034253,1718956595579,-2288.87,0.00041095,31]
[330034254,1718956595602,-500.0,0.00041095,31]
[330034255,1718956595625,-500.0,0.00041095,31]
[330034256,1718956595648,-1558.75,0.00041095,31]
[330034257,1718956595671,-500.0,0.00041095,31]
[330034258,1718956595694,-500.0,0.00041095,31]
[330034259,1718956595718,-1836.87,0.00041095,31]
[330034260,1718956595741,-625.32,0.00041095,31]
[330034261,1718956595979,-3050.92,0.00041095,31]
[330034262,1718956596005,-500.0,0.00041095,31]
[330034263,1718956596032,-1747.68,0.00041095,31]
[330034264,1718956596056,-500.26622927,0.00041095,31]
[330034265,1718956596080,-500.0,0.00041095,31]
[330034266,1718956596105,-1268.04,0.00041095,31]
[330034267,1718956596130,-1179.68,0.00041095,31]
[330034268,1718956596154,-500.0,0.00041095,31]